[Event "Open Nuevo Centro. Jornada 1"]
[Site "Chess.com"]
[Date "2020.06.19"]
[Round "2"]
[White "Kovacevic, Slobodan"]
[Black "Rodriguez Rodriguez, Joan David "]
[Result "1-0"]
[WhiteElo "2057"]
[BlackElo "1627"]
[TimeControl "180+2"]
[EndTime "10:52:59 PDT"]
[Termination "Victoria de nikko110 por tiempo"]

1. d4 {[%clk 0:02:55.2]} 1... d5 {[%clk 0:03:00.4]} 2. Bf4 {[%clk 0:02:53.8]}
2... Nf6 {[%clk 0:03:01.3]} 3. e3 {[%clk 0:02:51.5]} 3... c5 {[%clk 0:03:02.5]}
4. c3 {[%clk 0:02:50.6]} 4... Nc6 {[%clk 0:03:03.3]} 5. Nd2 {[%clk 0:02:48.3]}
5... Qb6 {[%clk 0:03:03.1]} 6. Qb3 {[%clk 0:02:45.7]} 6... c4 {[%clk 0:03:03.2]}
7. Qc2 {[%clk 0:02:44.3]} 7... Bg4 {[%clk 0:02:32.2]} 8. Ngf3 {[%clk 0:02:40.4]}
8... e6 {[%clk 0:02:31.4]} 9. Be2 {[%clk 0:02:38.7]} 9... Bf5 {[%clk 0:02:30.9]}
10. Qc1 {[%clk 0:02:36]} 10... h6 {[%clk 0:02:24.9]} 11. O-O {[%clk 0:02:33.6]}
11... Be7 {[%clk 0:02:25.9]} 12. Bd1 {[%clk 0:02:30.1]} 12... O-O {[%clk
0:02:22.6]} 13. Bc2 {[%clk 0:02:29.1]} 13... Rac8 {[%clk 0:02:10]} 14. Re1
{[%clk 0:02:26.2]} 14... a5 {[%clk 0:01:52.2]} 15. h3 {[%clk 0:02:22.9]} 15...
Ra8 {[%clk 0:01:44]} 16. a4 {[%clk 0:02:20.8]} 16... Rfe8 {[%clk 0:01:35.4]} 17.
e4 {[%clk 0:02:18.8]} 17... dxe4 {[%clk 0:01:34.6]} 18. Nxe4 {[%clk 0:02:16.9]}
18... Nxe4 {[%clk 0:01:14]} 19. Bxe4 {[%clk 0:02:14]} 19... Bxe4 {[%clk
0:01:12.7]} 20. Rxe4 {[%clk 0:02:12.7]} 20... Bf8 {[%clk 0:01:07.6]} 21. Nd2
{[%clk 0:02:06]} 21... Qa6 {[%clk 0:00:38.5]} 22. Qf1 {[%clk 0:02:04.5]} 22...
Ne7 {[%clk 0:00:38.5]} 23. Qxc4 {[%clk 0:02:02]} 23... Qxc4 {[%clk 0:00:36.3]}
24. Nxc4 {[%clk 0:02:00.2]} 24... Nd5 {[%clk 0:00:35.4]} 25. Bg3 {[%clk
0:01:57.7]} 25... Rac8 {[%clk 0:00:34.7]} 26. Nxa5 {[%clk 0:01:55.1]} 26... b6
{[%clk 0:00:31.6]} 27. Nb3 {[%clk 0:01:53.9]} 27... g6 {[%clk 0:00:29.1]} 28.
Ra2 {[%clk 0:01:47.2]} 28... f5 {[%clk 0:00:19]} 29. Re1 {[%clk 0:01:44.4]}
29... f4 {[%clk 0:00:19.8]} 30. Bh2 {[%clk 0:01:42.6]} 30... g5 {[%clk
0:00:21.2]} 31. Nd2 {[%clk 0:01:37.8]} 31... Kf7 {[%clk 0:00:21.5]} 32. Nf3
{[%clk 0:01:36.6]} 32... Bg7 {[%clk 0:00:22.3]} 33. Kf1 {[%clk 0:01:31.7]} 33...
Rc4 {[%clk 0:00:23.3]} 34. Bg1 {[%clk 0:01:26.3]} 34... Rec8 {[%clk 0:00:23.8]}
35. Nd2 {[%clk 0:01:21.6]} 35... R4c7 {[%clk 0:00:23.1]} 36. f3 {[%clk
0:01:20.4]} 36... Rb7 {[%clk 0:00:22.2]} 37. Bf2 {[%clk 0:01:17.2]} 37... b5
{[%clk 0:00:22.6]} 38. a5 {[%clk 0:01:15.9]} 38... Ra8 {[%clk 0:00:23]} 39. Ne4
{[%clk 0:01:12.3]} 39... Rba7 {[%clk 0:00:20.2]} 40. Rea1 {[%clk 0:01:10.1]}
40... Ra6 {[%clk 0:00:16.6]} 41. Ke2 {[%clk 0:01:07.4]} 41... Rc6 {[%clk
0:00:17.1]} 42. Kd3 {[%clk 0:01:04.1]} 42... Rcc8 {[%clk 0:00:13.9]} 43. Nd6+
{[%clk 0:01:01.8]} 43... Ke7 {[%clk 0:00:13.2]} 44. Nxc8+ {[%clk 0:01:00.6]}
44... Rxc8 {[%clk 0:00:15.1]} 45. a6 {[%clk 0:00:58.4]} 45... Ra8 {[%clk
0:00:16.1]} 46. a7 {[%clk 0:00:57.6]} 46... Kd7 {[%clk 0:00:11.1]} 47. Ra5
{[%clk 0:00:54.4]} 47... b4 {[%clk 0:00:11.8]} 48. c4 {[%clk 0:00:52.4]} 48...
Nb6 {[%clk 0:00:06.7]} 49. Rb5 {[%clk 0:00:46.7]} 49... Kc7 {[%clk 0:00:03.4]}
50. Rxb4 {[%clk 0:00:43.3]} 50... Bf8 {[%clk 0:00:03.4]} 51. Rb5 {[%clk
0:00:41.5]} 51... Nd7 {[%clk 0:00:04.8]} 52. b3 {[%clk 0:00:38.7]} 52... Bd6
{[%clk 0:00:04.5]} 53. b4 {[%clk 0:00:33.6]} 53... Be7 {[%clk 0:00:04.7]} 54.
Ra4 {[%clk 0:00:31.1]} 54... Bd6 {[%clk 0:00:02.4]} 55. d5 {[%clk 0:00:27.3]}
55... exd5 {[%clk 0:00:03.5]} 56. Rxd5 {[%clk 0:00:25]} 56... Ne5+ {[%clk
0:00:03.2]} 57. Kc3 {[%clk 0:00:23.4]} 1

[Event "Open Nuevo Centro. Jornada 1"]
[Site "Chess.com"]
[Date "2020.06.19"]
[Round "2"]
[White "Amor�s P�rez, Manuel David"]
[Black "Macias Pino, Diego"]
[Result "1/2-1/2"]
[WhiteElo "1642"]
[BlackElo "2165"]
[TimeControl "180+2"]
[EndTime "10:53:11 PDT"]
[Termination "Partida en tablas por mutuo acuerdo"]

1. e4 {[%clk 0:03:01.9]} 1... c6 {[%clk 0:02:40.6]} 2. Nf3 {[%clk 0:03:02.4]}
2... d5 {[%clk 0:02:42.1]} 3. exd5 {[%clk 0:03:04.3]} 3... cxd5 {[%clk
0:02:43.7]} 4. d4 {[%clk 0:03:05.6]} 4... Nc6 {[%clk 0:02:45.3]} 5. Bb5 {[%clk
0:03:06]} 5... Bg4 {[%clk 0:02:46.4]} 6. Bxc6+ {[%clk 0:03:07.3]} 6... bxc6
{[%clk 0:02:47.2]} 7. c3 {[%clk 0:03:07.8]} 7... e6 {[%clk 0:02:48]} 8. O-O
{[%clk 0:03:08.6]} 8... Nf6 {[%clk 0:02:48.4]} 9. h3 {[%clk 0:03:10]} 9... Bh5
{[%clk 0:02:48]} 10. Bg5 {[%clk 0:03:11.2]} 10... Bd6 {[%clk 0:02:46.9]} 11.
Nbd2 {[%clk 0:03:12.2]} 11... h6 {[%clk 0:02:47.8]} 12. Bxf6 {[%clk 0:03:11]}
12... Qxf6 {[%clk 0:02:49.1]} 13. Qa4 {[%clk 0:03:12.3]} 13... Kd7 {[%clk
0:02:21]} 14. c4 {[%clk 0:03:02.8]} 14... Rhc8 {[%clk 0:02:08.1]} 15. cxd5
{[%clk 0:03:03.2]} 15... exd5 {[%clk 0:01:51.8]} 16. Rac1 {[%clk 0:02:57.7]}
16... Rc7 {[%clk 0:01:50.4]} 17. Rfe1 {[%clk 0:02:46.3]} 17... Qf4 {[%clk
0:01:49.6]} 18. g3 {[%clk 0:02:45.7]} 18... Qf6 {[%clk 0:01:24.5]} 19. Ne5+
{[%clk 0:02:42.9]} 19... Bxe5 {[%clk 0:01:15.6]} 20. Rxe5 {[%clk 0:02:40]} 20...
Bg6 {[%clk 0:01:17]} 21. Rce1 {[%clk 0:02:40.4]} 21... Qd6 {[%clk 0:01:08.9]}
22. Re7+ {[%clk 0:02:34.9]} 22... Qxe7 {[%clk 0:01:07.1]} 23. Rxe7+ {[%clk
0:02:35.9]} 23... Kxe7 {[%clk 0:01:08.7]} 24. Qb4+ {[%clk 0:02:36.7]} 24... Ke8
{[%clk 0:01:04.5]} 25. Qc3 {[%clk 0:02:32]} 25... f6 {[%clk 0:01:01.3]} 26. g4
{[%clk 0:02:30.9]} 26... Bf7 {[%clk 0:01:00.8]} 27. b3 {[%clk 0:02:31.9]} 27...
Be6 {[%clk 0:00:58.9]} 28. Qd3 {[%clk 0:02:24.5]} 28... Kf7 {[%clk 0:00:59.6]}
29. Nf3 {[%clk 0:02:23.3]} 29... g6 {[%clk 0:00:49.1]} 30. Nh4 {[%clk
0:02:23.7]} 30... Rg8 {[%clk 0:00:49.6]} 31. Kh2 {[%clk 0:02:14.2]} 31... Bc8
{[%clk 0:00:49]} 32. Qg3 {[%clk 0:02:13.9]} 32... Re7 {[%clk 0:00:46.7]} 33. Qd6
{[%clk 0:02:12.5]} 33... Bb7 {[%clk 0:00:46.6]} 34. Kg2 {[%clk 0:02:05.6]} 34...
Rge8 {[%clk 0:00:46.3]} 35. Qb4 {[%clk 0:02:03.7]} 35... Ba8 {[%clk 0:00:41.3]}
36. Qc3 {[%clk 0:02:00.8]} 36... Re4 {[%clk 0:00:37.8]} 37. Qd3 {[%clk
0:02:00.6]} 37... f5 {[%clk 0:00:38.2]} 38. gxf5 {[%clk 0:02:00.1]} 38... Rxh4
{[%clk 0:00:32.4]} 39. fxg6+ {[%clk 0:02:01.3]} 39... Kg7 {[%clk 0:00:32.4]} 40.
Qa6 {[%clk 0:01:56.6]} 40... Re7 {[%clk 0:00:31.6]} 41. Qc8 {[%clk 0:01:56.6]}
41... Rh5 {[%clk 0:00:32.1]} 42. Qxa8 {[%clk 0:01:54.3]} 42... Rg5+ {[%clk
0:00:32.1]} 43. Kf1 {[%clk 0:01:55.1]} 43... Rxg6 {[%clk 0:00:33.8]} 44. Qd8
{[%clk 0:01:52.1]} 44... Rge6 {[%clk 0:00:34.3]} 45. Qa5 {[%clk 0:01:48.3]}
45... Rf6 {[%clk 0:00:31.6]} 46. Qd2 {[%clk 0:01:47]} 46... Rfe6 {[%clk
0:00:32.4]} 47. Qc2 {[%clk 0:01:44.6]} 47... Re1+ {[%clk 0:00:32.5]} 48. Kg2
{[%clk 0:01:46]} 48... R1e2 {[%clk 0:00:34.1]} 49. Qxc6 {[%clk 0:01:44.5]} 49...
Rxa2 {[%clk 0:00:35.2]} 50. Qxd5 {[%clk 0:01:44.6]} 50... Ree2 {[%clk
0:00:36.7]} 51. Qd7+ {[%clk 0:01:43.6]} 51... Kf6 {[%clk 0:00:36.9]} 52. Qd8+
{[%clk 0:01:43.5]} 52... Kf7 {[%clk 0:00:36.9]} 53. Qd5+ {[%clk 0:01:42.2]}
53... Ke7 {[%clk 0:00:38.1]} 54. Qc5+ {[%clk 0:01:40.3]} 54... Kd7 {[%clk
0:00:37.9]} 55. Qb5+ {[%clk 0:01:38.8]} 55... Ke7 {[%clk 0:00:34.6]} 56. Qc5+
{[%clk 0:01:36.6]} 56... Kd7 {[%clk 0:00:35.6]} 57. d5 {[%clk 0:01:38]} 57...
Kd8 {[%clk 0:00:32.4]} 58. d6 {[%clk 0:01:38.3]} 58... Rec2 {[%clk 0:00:31.1]}
59. Qd4 {[%clk 0:01:30]} 59... Kd7 {[%clk 0:00:29.9]} 60. Qf6 {[%clk 0:01:29.1]}
60... Re2 {[%clk 0:00:28.9]} 61. Qf3 {[%clk 0:01:23.6]} 61... Rxf2+ {[%clk
0:00:29.7]} 62. Qxf2 {[%clk 0:01:24.5]} 62... Rxf2+ {[%clk 0:00:31.4]} 63. Kxf2
{[%clk 0:01:25.9]} 63... Kxd6 {[%clk 0:00:33.1]} 64. Ke3 {[%clk 0:01:26.2]}
64... Kc5 {[%clk 0:00:33.7]} 65. Kd3 {[%clk 0:01:27.4]} 65... Kb4 {[%clk
0:00:35]} 66. Kc2 {[%clk 0:01:28.6]} 66... h5 {[%clk 0:00:33.6]} 67. Kb2 {[%clk
0:01:27.1]} 67... a5 {[%clk 0:00:34.3]} 68. Kc2 {[%clk 0:01:28.2]} 68... Kb5
{[%clk 0:00:33.6]} 69. Kc3 {[%clk 0:01:29.3]} 69... Kc5 {[%clk 0:00:34.5]} 70.
Kd3 {[%clk 0:01:29.6]} 70... h4 {[%clk 0:00:35.3]} 71. Kc3 {[%clk 0:01:30.3]}
71... Kb5 {[%clk 0:00:35.5]} 72. Kc2 {[%clk 0:01:30.8]} 72... Kc5 {[%clk
0:00:35.2]} 73. Kc3 {[%clk 0:01:31.3]} 73... Kd5 {[%clk 0:00:36.8]} 74. Kd3
{[%clk 0:01:30.4]} 74... Ke5 {[%clk 0:00:38.2]} 75. Ke3 {[%clk 0:01:31.5]} 75...
Kd6 {[%clk 0:00:30.3]} 76. Kd4 {[%clk 0:01:30]} 76... Kc6 {[%clk 0:00:31]} 77.
Kc4 {[%clk 0:01:31]} 77... Kb6 {[%clk 0:00:32.3]} 78. Kd4 {[%clk 0:01:27.8]}
78... Kb5 {[%clk 0:00:33.6]} 79. Kc3 {[%clk 0:01:28.8]} 79... Kc5 {[%clk
0:00:35.1]} 80. Kd3 {[%clk 0:01:29.9]} 80... Kb4 {[%clk 0:00:36.5]} 81. Kc2
{[%clk 0:01:31]} 1/2-1

[Event "Open Nuevo Centro. Jornada 1"]
[Site "Chess.com"]
[Date "2020.06.19"]
[Round "2"]
[White "Luque Saiz, Andres"]
[Black "Campos Gambuti, Luis Mar�a"]
[Result "0-1"]
[WhiteElo "1693"]
[BlackElo "2323"]
[TimeControl "180+2"]
[EndTime "10:53:16 PDT"]
[Termination "Victoria de Tangalangafacv por abandono"]

1. e4 {[%clk 0:03:01.9]} 1... d5 {[%clk 0:03:01.3]} 2. exd5 {[%clk 0:03:02.2]}
2... Qxd5 {[%clk 0:03:02.9]} 3. d4 {[%clk 0:03:02.4]} 3... e5 {[%clk 0:03:02.2]}
4. dxe5 {[%clk 0:02:59.3]} 4... Qxd1+ {[%clk 0:03:01.5]} 5. Kxd1 {[%clk
0:03:01.2]} 5... Nc6 {[%clk 0:03:03]} 6. Bb5 {[%clk 0:02:58.8]} 6... Bd7 {[%clk
0:03:00.1]} 7. f4 {[%clk 0:02:45.1]} 7... Nxe5 {[%clk 0:03:00.3]} 8. Bxd7+
{[%clk 0:02:41.3]} 8... Nxd7 {[%clk 0:03:02.2]} 9. Nf3 {[%clk 0:02:42.3]} 9...
O-O-O {[%clk 0:03:01.9]} 10. Ke2 {[%clk 0:02:43.2]} 10... Bc5 {[%clk 0:03:00]}
11. Rd1 {[%clk 0:02:39.2]} 11... Nh6 {[%clk 0:02:53.8]} 12. Nc3 {[%clk
0:02:30.4]} 12... Ng4 {[%clk 0:02:43.8]} 13. h3 {[%clk 0:02:30.8]} 13... Rhe8+
{[%clk 0:02:44.3]} 14. Kf1 {[%clk 0:02:30.7]} 14... Ne3+ {[%clk 0:02:43.9]} 15.
Bxe3 {[%clk 0:02:30.9]} 15... Bxe3 {[%clk 0:02:45.3]} 16. Nd5 {[%clk 0:02:18.4]}
16... Bc5 {[%clk 0:02:44.1]} 17. Re1 {[%clk 0:02:07.9]} 17... c6 {[%clk
0:02:41.5]} 18. Nc3 {[%clk 0:02:00.5]} 18... Be3 {[%clk 0:02:41.1]} 19. g3
{[%clk 0:01:52.3]} 19... f6 {[%clk 0:01:57.5]} 20. Re2 {[%clk 0:01:44]} 20...
Bc5 {[%clk 0:01:51.1]} 21. Ne4 {[%clk 0:01:36.5]} 21... Bf8 {[%clk 0:01:50.8]}
22. Rd1 {[%clk 0:01:27.1]} 22... Nb6 {[%clk 0:01:49.9]} 23. Nd6+ {[%clk
0:00:48.1]} 23... Bxd6 {[%clk 0:01:41.9]} 24. Rxe8 {[%clk 0:00:48.8]} 24... Rxe8
{[%clk 0:01:41.7]} 25. Rxd6 {[%clk 0:00:49]} 25... Nd5 {[%clk 0:01:43.3]} 26.
Nd4 {[%clk 0:00:39.3]} 26... Kc7 {[%clk 0:01:40.9]} 27. Re6 {[%clk 0:00:39.9]}
27... Kd7 {[%clk 0:01:07.4]} 28. Rxe8 {[%clk 0:00:39.3]} 28... Kxe8 {[%clk
0:01:08.5]} 29. c3 {[%clk 0:00:38.5]} 29... g6 {[%clk 0:01:05.6]} 30. Ke2 {[%clk
0:00:38.2]} 30... Ke7 {[%clk 0:01:07]} 31. Kd3 {[%clk 0:00:38]} 31... Kd6 {[%clk
0:01:08.2]} 32. a3 {[%clk 0:00:38.7]} 32... a6 {[%clk 0:01:01.3]} 33. h4 {[%clk
0:00:38.9]} 33... h5 {[%clk 0:01:00.1]} 34. Nf3 {[%clk 0:00:39.5]} 34... c5
{[%clk 0:00:57.6]} 35. Nd2 {[%clk 0:00:40.1]} 35... b6 {[%clk 0:00:53]} 36. c4
{[%clk 0:00:30.8]} 36... Ne7 {[%clk 0:00:52.8]} 37. Ne4+ {[%clk 0:00:31.4]}
37... Ke6 {[%clk 0:00:53.7]} 38. b4 {[%clk 0:00:31.7]} 38... cxb4 {[%clk
0:00:51.4]} 39. axb4 {[%clk 0:00:33.6]} 39... Nc6 {[%clk 0:00:48.8]} 40. b5
{[%clk 0:00:33.9]} 40... axb5 {[%clk 0:00:49]} 41. cxb5 {[%clk 0:00:35.8]} 41...
Ne7 {[%clk 0:00:31.4]} 42. Kd4 {[%clk 0:00:28.7]} 42... Nd5 {[%clk 0:00:27.4]}
43. Nd2 {[%clk 0:00:25.7]} 43... Nc7 {[%clk 0:00:25.7]} 44. Kc4 {[%clk 0:00:26]}
44... Kf5 {[%clk 0:00:26.2]} 45. Kb4 {[%clk 0:00:22.1]} 45... Nd5+ {[%clk
0:00:24.2]} 46. Kc4 {[%clk 0:00:22.3]} 46... Ne7 {[%clk 0:00:24.7]} 47. Kd4
{[%clk 0:00:22]} 47... Kg4 {[%clk 0:00:25.5]} 48. Ne4 {[%clk 0:00:23.2]} 48...
f5 {[%clk 0:00:26.3]} 49. Nc3 {[%clk 0:00:18.8]} 49... Kxg3 {[%clk 0:00:27]} 50.
Nd5 {[%clk 0:00:20.1]} 50... Nxd5 {[%clk 0:00:27]} 51. Kxd5 {[%clk 0:00:22]}
51... Kxf4 {[%clk 0:00:27.2]} 52. Kc6 {[%clk 0:00:23.3]} 52... Ke3 {[%clk
0:00:28.8]} 53. Kxb6 {[%clk 0:00:24.5]} 53... f4 {[%clk 0:00:30.5]} 54. Kc6
{[%clk 0:00:21.9]} 54... f3 {[%clk 0:00:32]} 55. b6 {[%clk 0:00:23.8]} 55... f2
{[%clk 0:00:33.6]} 56. b7 {[%clk 0:00:25.7]} 56... f1=Q {[%clk 0:00:35.2]} 57.
b8=Q {[%clk 0:00:27.6]} 57... Qf3+ {[%clk 0:00:33.8]} 58. Kd7 {[%clk 0:00:28.3]}
58... Qf5+ {[%clk 0:00:32.7]} 59. Kc6 {[%clk 0:00:28.8]} 59... Kf3 {[%clk
0:00:33.5]} 60. Qh2 {[%clk 0:00:24]} 60... Qe4+ {[%clk 0:00:33.5]} 61. Kb5
{[%clk 0:00:22.9]} 61... Qe2+ {[%clk 0:00:30.7]} 62. Qxe2+ {[%clk 0:00:22.3]}
62... Kxe2 {[%clk 0:00:32.1]} 63. Kc5 {[%clk 0:00:24.2]} 63... Kf3 {[%clk
0:00:33.7]} 64. Kd5 {[%clk 0:00:24.5]} 64... Kg4 {[%clk 0:00:35]} 65. Ke5 {[%clk
0:00:25.4]} 65... Kxh4 {[%clk 0:00:36.5]} 66. Kf4 {[%clk 0:00:26.8]} 66... g5+
{[%clk 0:00:36.7]} 67. Kf3 {[%clk 0:00:28.1]} 67... g4+ {[%clk 0:00:37.7]} 68.
Kf4 {[%clk 0:00:29.2]} 68... Kh3 {[%clk 0:00:38.3]} 69. Ke3 {[%clk 0:00:28.8]}
69... Kh2 {[%clk 0:00:39.3]} 70. Kf2 {[%clk 0:00:30.7]} 70... g3+ {[%clk
0:00:40.6]} 71. Kf3 {[%clk 0:00:31.7]} 71... g2 {[%clk 0:00:41.9]} 0

[Event "Open Nuevo Centro. Jornada 1"]
[Site "Chess.com"]
[Date "2020.06.19"]
[Round "2"]
[White "Garcia, Jhoel"]
[Black "Gimeno Higueras, Roberto"]
[Result "1/2-1/2"]
[WhiteElo "2323"]
[BlackElo "2058"]
[TimeControl "180+2"]
[EndTime "10:53:44 PDT"]
[Termination "Partida en tablas por material insuficiente"]

1. d4 {[%clk 0:02:53.2]} 1... Nf6 {[%clk 0:03:00.5]} 2. c4 {[%clk 0:02:53.8]}
2... e6 {[%clk 0:03:01.7]} 3. Nc3 {[%clk 0:02:55.2]} 3... Bb4 {[%clk 0:03:02.6]}
4. e3 {[%clk 0:02:55.8]} 4... O-O {[%clk 0:03:03.2]} 5. Bd3 {[%clk 0:02:57]}
5... c5 {[%clk 0:03:04.2]} 6. a3 {[%clk 0:02:57.6]} 6... Bxc3+ {[%clk 0:03:05]}
7. bxc3 {[%clk 0:02:58.9]} 7... d6 {[%clk 0:03:05.7]} 8. Ne2 {[%clk 0:02:59.5]}
8... Nc6 {[%clk 0:03:06.8]} 9. O-O {[%clk 0:03:00.9]} 9... b6 {[%clk 0:03:08]}
10. d5 {[%clk 0:02:50.9]} 10... Ne5 {[%clk 0:03:04.6]} 11. e4 {[%clk 0:02:51.8]}
11... Ba6 {[%clk 0:02:57.5]} 12. f4 {[%clk 0:02:42.8]} 12... Nxd3 {[%clk
0:02:57.5]} 13. Qxd3 {[%clk 0:02:42.3]} 13... exd5 {[%clk 0:02:58.7]} 14. exd5
{[%clk 0:02:43.7]} 14... Qd7 {[%clk 0:02:54.6]} 15. a4 {[%clk 0:02:43.3]} 15...
Rae8 {[%clk 0:02:51.8]} 16. Ng3 {[%clk 0:02:41.7]} 16... Qg4 {[%clk 0:02:34.5]}
17. Bd2 {[%clk 0:02:30.1]} 17... h5 {[%clk 0:02:31.3]} 18. h3 {[%clk 0:02:24]}
18... Bxc4 {[%clk 0:02:27.8]} 19. Qxc4 {[%clk 0:02:10.3]} 19... Qxg3 {[%clk
0:02:28.3]} 20. Rf3 {[%clk 0:01:58.7]} 20... Qg6 {[%clk 0:02:25.8]} 21. f5
{[%clk 0:01:57.3]} 21... Qh7 {[%clk 0:02:23.6]} 22. Re1 {[%clk 0:01:45.9]} 22...
Rxe1+ {[%clk 0:02:21.9]} 23. Bxe1 {[%clk 0:01:47.2]} 23... Re8 {[%clk
0:02:23.1]} 24. Bg3 {[%clk 0:01:48.3]} 24... Ne4 {[%clk 0:02:09.8]} 25. Qb5
{[%clk 0:01:27.9]} 25... Kf8 {[%clk 0:01:53.1]} 26. Qd7 {[%clk 0:01:17.1]} 26...
Qh6 {[%clk 0:01:34.9]} 27. f6 {[%clk 0:01:07.7]} 27... gxf6 {[%clk 0:00:47.6]}
28. Bxd6+ {[%clk 0:01:01.1]} 28... Nxd6 {[%clk 0:00:48.6]} 29. Qxd6+ {[%clk
0:01:02.4]} 29... Kg7 {[%clk 0:00:48.3]} 30. Rg3+ {[%clk 0:00:55.3]} 30... Kh7
{[%clk 0:00:48.1]} 31. Qd7 {[%clk 0:00:54]} 31... Rf8 {[%clk 0:00:44.8]} 32.
Qf5+ {[%clk 0:00:54.6]} 32... Kh8 {[%clk 0:00:46]} 33. d6 {[%clk 0:00:53.3]}
33... h4 {[%clk 0:00:42.4]} 34. Rg4 {[%clk 0:00:44.5]} 34... Qe3+ {[%clk
0:00:43.1]} 35. Kh2 {[%clk 0:00:20.9]} 35... Qe5+ {[%clk 0:00:44]} 36. Qxe5
{[%clk 0:00:22.1]} 36... fxe5 {[%clk 0:00:45.5]} 37. Rxh4+ {[%clk 0:00:22]}
37... Kg7 {[%clk 0:00:46.9]} 38. Re4 {[%clk 0:00:18.2]} 38... Kf6 {[%clk
0:00:47.3]} 39. g4 {[%clk 0:00:17.4]} 39... Rd8 {[%clk 0:00:48.1]} 40. Kg3
{[%clk 0:00:17.8]} 40... Rxd6 {[%clk 0:00:48.5]} 41. Re3 {[%clk 0:00:19]} 41...
c4 {[%clk 0:00:48.8]} 42. Rf3+ {[%clk 0:00:17.7]} 42... Kg6 {[%clk 0:00:49.2]}
43. Kf2 {[%clk 0:00:17]} 43... Rd2+ {[%clk 0:00:39.2]} 44. Ke1 {[%clk
0:00:15.3]} 44... Rd3 {[%clk 0:00:36.2]} 45. Rf5 {[%clk 0:00:14.3]} 45... f6
{[%clk 0:00:35.8]} 46. h4 {[%clk 0:00:14.2]} 46... Rxc3 {[%clk 0:00:37]} 47. h5+
{[%clk 0:00:15.6]} 47... Kg7 {[%clk 0:00:37.6]} 48. g5 {[%clk 0:00:16.3]} 48...
fxg5 {[%clk 0:00:33.5]} 49. Rxg5+ {[%clk 0:00:17.8]} 49... Kf6 {[%clk
0:00:34.8]} 50. Rg6+ {[%clk 0:00:18.1]} 50... Kf7 {[%clk 0:00:30.6]} 51. Rg5
{[%clk 0:00:17.6]} 51... Ra3 {[%clk 0:00:31.2]} 52. h6 {[%clk 0:00:15.7]} 52...
Rh3 {[%clk 0:00:31.7]} 53. Rxe5 {[%clk 0:00:16.2]} 53... Rxh6 {[%clk 0:00:31.9]}
54. Kd2 {[%clk 0:00:16.7]} 54... Kf6 {[%clk 0:00:31.7]} 55. Rb5 {[%clk
0:00:16.5]} 55... Rh3 {[%clk 0:00:30.9]} 56. a5 {[%clk 0:00:17.1]} 56... Rb3
{[%clk 0:00:15.1]} 57. Rh5 {[%clk 0:00:09.7]} 57... bxa5 {[%clk 0:00:10.4]} 58.
Rxa5 {[%clk 0:00:09.7]} 58... Rb7 {[%clk 0:00:11.6]} 59. Kc3 {[%clk 0:00:10]}
59... Ke6 {[%clk 0:00:12.3]} 60. Kxc4 {[%clk 0:00:11.4]} 60... Kd6 {[%clk
0:00:13.7]} 61. Ra6+ {[%clk 0:00:12.4]} 61... Kc7 {[%clk 0:00:13.3]} 62. Kc5
{[%clk 0:00:13.7]} 62... Kb8 {[%clk 0:00:12.6]} 63. Rh6 {[%clk 0:00:13.9]} 63...
Rc7+ {[%clk 0:00:13.5]} 64. Kb5 {[%clk 0:00:14.3]} 64... Kb7 {[%clk 0:00:14.9]}
65. Ka5 {[%clk 0:00:14.5]} 65... Rg7 {[%clk 0:00:16.1]} 66. Rh5 {[%clk
0:00:15.1]} 66... a6 {[%clk 0:00:16]} 67. Rc5 {[%clk 0:00:16.5]} 67... Rc7
{[%clk 0:00:16.9]} 68. Rxc7+ {[%clk 0:00:17.1]} 68... Kxc7 {[%clk 0:00:18.4]}
69. Kxa6 {[%clk 0:00:19]} 1/2-1